bitfinex/quotes_SOLUSD_20250514
["timestamp","ask_amount","ask_price","bid_price","bid_amount"]
[1747215539054,19.62,178.91,178.9,8.64977233]
[1747215539255,25.20940249,178.91,178.9,8.64977233]
[1747215539474,19.62,178.91,178.9,8.64977233]
[1747215539674,25.20940249,178.91,178.9,8.64977233]
[1747215542081,25.20940249,178.91,178.89,8.64977233]
[1747215542385,25.20940249,178.91,178.87,8.64977233]
[1747215542899,47.83268105,178.91,178.86,8.64977233]
[1747215543191,39.18290872,178.91,178.88,8.64977233]
[1747215543855,25.20940249,178.91,178.89,8.64977233]
[1747215544051,25.20940249,178.91,178.9,8.64977233]
[1747215544257,25.20940249,178.91,178.85,18.933972]
[1747215544478,25.20940249,178.91,178.9,8.64977233]
[1747215546789,19.62,178.91,178.9,8.64977233]
[1747215548294,25.20940249,178.91,178.9,8.64977233]
[1747215548788,19.62,178.91,178.9,8.64977233]
[1747215551276,25.20940249,178.91,178.88,0.28432314]
[1747215551470,33.85917482,178.91,178.86,8.64977233]
[1747215551669,25.20940249,178.91,178.86,8.64977233]
[1747215551885,33.85917482,178.91,178.86,8.64977233]
[1747215552889,47.83268105,178.91,178.86,8.64977233]
[1747215553188,28.16977233,178.9,178.84,8.64977233]
[1747215553607,8.64977233,178.89,178.84,8.64977233]
[1747215554280,8.64977233,178.88,178.83,8.64977233]
[1747215554476,19.52,178.9,178.82,8.64977233]
[1747215554477,8.64977233,178.87,178.82,8.64977233]
[1747215554899,8.64977233,178.85,178.8,8.64977233]
[1747215555101,19.54,178.84,178.8,8.64977233]
[1747215556026,14.24167525,178.83,178.78,1.5882]
[1747215556239,8.64977233,178.82,178.78,1.5882]
[1747215556397,8.64977233,178.82,178.77,8.64977233]
[1747215556728,28.22143256,178.83,178.78,8.64977233]
[1747215557112,28.22143256,178.83,178.76,18.64964886]
[1747215557293,28.22143256,178.83,178.78,8.64977233]
[1747215561620,8.64977233,178.81,178.77,8.64977233]
[1747215562589,5.59284116,178.8,178.77,8.64977233]
[1747215563726,5.59252838,178.81,178.77,8.64977233]
[1747215565128,19.57384933,178.81,178.77,8.64977233]
[1747215565430,8.64977233,178.78,178.73,27.29942119]
[1747215565718,8.64977233,178.76,178.71,8.64977233]
[1747215565919,8.64977233,178.76,178.72,8.64977233]
[1747215566153,28.18977233,178.77,178.72,8.64977233]
[1747215567631,5.59409263,178.76,178.72,8.64977233]
[1747215568319,5.59409263,178.76,178.7,26.0]
[1747215568624,5.59409263,178.76,178.72,8.64977233]
[1747215571132,5.59409263,178.76,178.73,8.64977233]
[1747215574625,5.59409263,178.76,178.72,8.64977233]
[1747215576245,14.24386496,178.76,178.69,18.933972]
[1747215576425,8.64977233,178.75,178.7,8.64977233]
[1747215576834,8.64977233,178.75,178.69,18.933972]
[1747215577145,39.02,178.77,178.67,8.64977233]
[1747215577146,8.64977233,178.72,178.67,8.64977233]
[1747215577317,19.48,178.71,178.67,8.64977233]
[1747215579020,5.5959709,178.7,178.65,0.14216157]
[1747215579358,5.5959709,178.7,178.67,8.64977233]
[1747215579718,5.5959709,178.7,178.65,18.933972]
[1747215579957,5.5959709,178.7,178.66,8.64977233]
[1747215580125,5.5959709,178.7,178.64,26.0]
[1747215580319,14.24574323,178.7,178.65,8.64977233]
[1747215580519,5.5959709,178.7,178.66,8.64977233]
[1747215580743,5.5959709,178.7,178.64,26.0]
[1747215580917,5.5959709,178.7,178.66,8.64977233]
[1747215581120,14.24574323,178.7,178.65,8.64977233]
[1747215581765,5.5959709,178.7,178.66,8.64977233]
[1747215582523,8.64977233,178.69,178.63,1.85282314]
[1747215582728,8.64977233,178.69,178.64,8.64977233]
[1747215582954,28.23567048,178.7,178.65,8.64977233]
[1747215583141,5.59659726,178.68,178.64,8.64977233]
[1747215583352,5.59659726,178.68,178.65,8.64977233]
[1747215584154,5.59628406,178.69,178.65,8.64977233]
[1747215586177,5.59628406,178.69,178.67,8.64977233]
[1747215586337,5.5959709,178.7,178.67,8.64977233]
[1747215586964,5.5959709,178.7,178.65,0.14216157]
[1747215587134,5.5959709,178.7,178.67,8.64977233]
[1747215587775,5.5959709,178.7,178.64,0.28432314]
[1747215588059,5.5959709,178.7,178.66,8.64977233]
[1747215588265,28.23567048,178.7,178.63,1.5685]
[1747215588437,28.23567048,178.7,178.65,8.64977233]
[1747215588759,8.64977233,178.69,178.65,8.64977233]
[1747215588962,8.64977233,178.69,178.64,8.64977233]
[1747215589559,19.58589815,178.7,178.64,8.64977233]
[1747215589861,8.64977233,178.69,178.64,8.64977233]
[1747215590233,8.64977233,178.69,178.61,26.14216157]
[1747215590436,5.59659726,178.68,178.64,8.64977233]
[1747215590650,13.98802907,178.73,178.67,8.64977233]
[1747215590858,13.98802907,178.73,178.7,8.64977233]
[1747215590859,19.48,178.72,178.7,8.64977233]
[1747215591776,28.12977233,178.72,178.66,18.79181043]
[1747215591953,28.12977233,178.72,178.67,8.64977233]
[1747215592472,5.59565776,178.71,178.69,8.64977233]
[1747215592860,5.59565776,178.71,178.7,8.64977233]
[1747215593172,5.59565776,178.71,178.69,8.64977233]
[1747215593345,5.59565776,178.71,178.66,18.79181043]
[1747215593546,5.59565776,178.71,178.68,8.64977233]
[1747215594563,5.59565776,178.71,178.65,1.67826157]
[1747215594766,5.59565776,178.71,178.67,8.64977233]
[1747215594950,14.24543009,178.71,178.67,8.64977233]
[1747215595274,28.23457451,178.71,178.67,8.64977233]
[1747215595480,28.23457451,178.71,178.65,1.5361]
[1747215595682,19.58480218,178.71,178.67,8.64977233]
[1747215595887,19.58480218,178.71,178.68,8.64977233]
[1747215597884,5.59565776,178.71,178.68,8.64977233]
[1747215598385,5.59565776,178.71,178.66,18.79181043]
[1747215598554,5.59565776,178.71,178.69,8.64977233]
[1747215598972,19.48,178.72,178.7,27.29942119]
[1747215599155,215.05415069,178.76,178.72,0.28432314]
[1747215599362,209.46,178.76,178.75,8.64977233]
[1747215600859,209.46,178.76,178.72,7.49776086]
[1747215601071,19.48,178.77,178.75,8.64977233]
[1747215601275,19.48,178.77,178.76,8.64977233]
[1747215601673,25.07222527,178.82,178.77,18.64964886]
[1747215601876,19.48,178.82,178.77,18.933972]
[1747215602271,19.48,178.82,178.79,8.64977233]
[1747215602664,25.07229382,178.82,178.79,8.64977233]
[1747215603965,25.07229382,178.82,178.8,8.64977233]
[1747215604576,74.07879065,178.86,178.81,8.64977233]
[1747215604577,5.59159024,178.84,178.81,8.64977233]
[1747215604778,5.59159024,178.84,178.83,8.64977233]
[1747215605090,5.59159024,178.84,178.81,8.64977233]
[1747215605387,13.97150218,178.94,178.83,8.64977233]
[1747215605701,8.64977233,178.91,178.86,8.64977233]
[1747215605863,5.58909009,178.92,178.86,8.64977233]
[1747215606067,8.64977233,178.91,178.86,8.64977233]
[1747215606268,8.64977233,178.9,178.85,8.64977233]
[1747215606458,19.48,178.93,178.86,18.64964886]
[1747215606659,19.48,178.93,178.92,8.64977233]
[1747215607459,33.71856679,178.93,178.86,18.64964886]
[1747215607677,33.71856679,178.93,178.86,0.28432314]
[1747215607873,33.71856679,178.93,178.88,8.64977233]
[1747215608885,25.06879446,178.93,178.89,8.64977233]
[1747215609684,19.48,178.93,178.92,8.64977233]
[1747215609893,25.06877773,178.93,178.92,8.64977233]
[1747215610102,25.06877773,178.93,178.9,8.64977233]
[1747215610473,25.06877773,178.93,178.89,8.64977233]
[1747215611495,25.06877773,178.93,178.9,8.64977233]
[1747215612074,25.06877773,178.93,178.85,1.6649]
[1747215612075,8.64977233,178.92,178.88,8.64977233]
[1747215612286,8.64977233,178.92,178.86,18.64964886]
[1747215612592,8.64977233,178.92,178.87,8.64977233]
[1747215612797,8.64977233,178.92,178.88,8.64977233]
[1747215613366,47.69049439,178.93,178.88,8.64977233]
[1747215613567,25.06877773,178.93,178.89,8.64977233]
[1747215613798,25.06877773,178.93,178.9,8.64977233]
[1747215614598,25.06877773,178.93,178.91,8.64977233]
[1747215614901,25.06877773,178.93,178.92,8.64977233]
[1747215615278,25.06877773,178.93,178.91,8.64977233]
[1747215616005,25.06877773,178.93,178.92,8.64977233]
[1747215618891,19.48,178.93,178.92,8.64977233]
[1747215619774,25.06877773,178.93,178.92,8.64977233]
[1747215619977,25.06877773,178.93,178.91,8.64977233]
[1747215620313,25.06877773,178.93,178.88,44.64964886]
[1747215620491,25.06877773,178.93,178.9,8.64977233]
[1747215621186,25.06877773,178.93,178.89,8.64977233]
[1747215621689,39.04072206,178.93,178.89,8.64977233]
[1747215623004,47.69049439,178.93,178.88,8.64977233]
[1747215623215,8.64977233,178.9,178.85,1.6649]
[1747215623496,8.64977233,178.9,178.85,8.64977233]
[1747215624703,5.59002739,178.89,178.85,8.64977233]
[1747215624901,5.59002739,178.89,178.86,8.64977233]
[1747215625603,19.56509586,178.89,178.85,8.64977233]
[1747215626015,5.58975417,178.9,178.88,8.64977233]
[1747215626305,13.97315088,178.92,178.89,8.64977233]
[1747215626306,5.58917389,178.92,178.89,8.64977233]
[1747215626511,25.06886256,178.93,178.91,8.64977233]
[1747215626676,25.06886256,178.93,178.92,8.64977233]
[1747215630077,19.48,178.93,178.92,8.64977233]
[1747215631226,19.48,178.93,178.92,27.29942119]
[1747215631400,5.58762832,178.97,178.93,18.64964886]
[1747215631594,5.58762832,178.97,178.95,8.64977233]
[1747215633225,5.58762832,178.97,178.93,18.64964886]
[1747215633226,5.58762832,178.97,178.96,8.64977233]
[1747215633747,24.9873151,178.98,178.96,8.64977233]
[1747215633898,19.4,178.98,178.97,27.29942119]
[1747215634896,5.58634516,179.01,178.97,27.29942119]
[1747215635113,5.58634516,179.01,179.0,8.64977233]
[1747215635419,5.58596804,179.02,178.99,8.64977233]
[1747215636725,5.58596804,179.02,179.01,8.64977233]
[1747215637029,5.58596804,179.02,179.0,8.64977233]
[1747215637807,5.58596804,179.02,178.99,8.64977233]
[1747215638009,14.23574037,179.02,178.97,8.64977233]
[1747215638237,28.20066049,179.02,178.96,1.6509]
[1747215638404,28.20066049,179.02,178.97,8.64977233]
[1747215638602,8.64977233,179.01,178.96,8.64977233]
[1747215638801,8.64977233,179.0,178.95,8.64977233]
[1747215639399,5.58690429,178.99,178.95,8.64977233]
[1747215639728,5.58690429,178.99,178.97,8.64977233]
[1747215639905,5.58690429,178.99,178.96,8.64977233]
[1747215641007,5.58690429,178.99,178.93,18.64964886]
[1747215641008,28.20393736,178.99,178.94,8.64977233]
[1747215641212,8.64977233,178.96,178.91,8.64977233]
[1747215641514,5.5884654,178.94,178.91,8.64977233]
[1747215642022,19.55962891,178.94,178.9,8.64977233]
[1747215642323,28.20940124,178.94,178.89,8.64977233]
[1747215643202,8.64977233,178.92,178.83,1.5292]
[1747215643397,5.58940249,178.91,178.87,8.64977233]
[1747215643701,5.58940249,178.91,178.89,8.64977233]
[1747215644416,5.58940249,178.91,178.84,18.64964886]
[1747215644629,5.58877773,178.93,178.89,8.64977233]
[1747215645141,5.58877773,178.93,178.9,8.64977233]
[1747215646544,5.58877773,178.93,178.92,8.64977233]
[1747215646718,5.58815311,178.95,178.92,8.64977233]
[1747215647030,5.58815311,178.95,178.94,8.64977233]
[1747215647622,5.58815311,178.95,178.93,8.64977233]
[1747215647811,5.58815311,178.95,178.94,8.64977233]
[1747215648841,5.58815311,178.95,178.91,20.27884886]
[1747215649012,5.58815311,178.95,178.94,8.64977233]
[1747215649442,5.58815311,178.95,178.91,20.27884886]
[1747215649443,5.58815311,178.95,178.93,8.64977233]
[1747215649944,5.58815311,178.95,178.92,8.64977233]
[1747215650643,5.58815311,178.95,178.93,8.64977233]
[1747215651248,5.58815311,178.95,178.94,8.64977233]
[1747215652746,5.58815311,178.95,178.93,8.64977233]
[1747215652946,19.55853589,178.95,178.92,8.64977233]
[1747215654349,19.55853589,178.95,178.91,8.64977233]
[1747215654537,28.20830822,178.95,178.9,8.64977233]
[1747215655943,28.20830822,178.95,178.89,26.0]
[1747215655944,8.64977233,178.94,178.89,8.64977233]
[1747215656648,8.64977233,178.94,178.83,14.38378282]
[1747215656649,8.64977233,178.92,178.83,1.5639]
[1747215656956,8.64977233,178.92,178.87,8.64977233]
[1747215657460,28.21049439,178.93,178.88,8.64977233]
[1747215661929,5.58877773,178.93,178.92,8.64977233]
[1747215662132,5.58815311,178.95,178.92,8.64977233]
[1747215662344,5.58815311,178.95,178.93,8.64977233]
[1747215663949,5.58815311,178.95,178.92,8.64977233]
[1747215664954,5.58815311,178.95,178.93,8.64977233]
[1747215665158,5.58815311,178.95,178.94,8.64977233]
[1747215666339,24.92793739,178.96,178.94,8.64977233]
[1747215666551,19.34,178.96,178.95,8.64977233]
[1747215666857,19.34,178.96,178.95,27.29942119]
[1747215667427,24.92784085,178.96,178.95,27.29942119]
[1747215667646,24.92784085,178.96,178.95,8.64977233]
[1747215668234,19.34,178.96,178.95,27.29942119]
[1747215668550,5.58668009,179.0,178.96,18.64964886]
[1747215668751,5.58668009,179.0,178.99,8.64977233]
[1747215670457,5.58668009,179.0,178.95,18.64964886]
[1747215670666,8.64977233,178.99,178.94,1.6326]
[1747215670958,5.58668009,179.0,178.89,6.4618]
[1747215670959,8.64977233,178.98,178.93,8.64977233]
[1747215672064,19.3,178.99,178.95,8.64977233]
[1747215672234,5.58721644,178.98,178.95,8.64977233]
[1747215673044,5.58721644,178.98,178.96,8.64977233]
[1747215673934,5.58721644,178.98,178.95,8.64977233]
[1747215674354,5.58690429,178.99,178.95,8.64977233]
[1747215674557,19.55416503,178.99,178.95,8.64977233]
[1747215675780,8.64977233,178.97,178.92,8.64977233]
[1747215676305,8.64977233,178.96,178.89,26.74404886]
[1747215676443,8.64977233,178.94,178.89,1.6326]
[1747215676649,19.3,178.94,178.91,8.64977233]
[1747215676862,19.3,178.94,178.93,8.64977233]
[1747215677168,19.3,178.94,178.91,8.64977233]
[1747215678271,5.58877773,178.93,178.91,8.64977233]
[1747215681358,5.58877773,178.93,178.89,1.6326]
[1747215681566,5.58877773,178.93,178.91,8.64977233]
[1747215682762,19.3,178.94,178.92,8.64977233]
[1747215682997,19.3,178.94,178.93,8.64977233]
[1747215683290,5.5879289,178.96,178.93,8.64977233]
[1747215683583,5.5879289,178.96,178.95,8.64977233]
[1747215683963,28.20502989,178.98,178.93,8.64977233]
[1747215684886,8.64977233,178.97,178.92,8.64977233]
[1747215685093,8.64977233,178.96,178.91,8.64977233]
[1747215685396,8.64977233,178.97,178.92,8.64977233]
[1747215686081,5.58784085,178.96,178.92,8.64977233]
[1747215687091,24.88784085,178.96,178.92,8.64977233]
[1747215687695,19.3,178.96,178.95,8.64977233]
[1747215688899,24.88784085,178.96,178.92,18.64964886]
[1747215689108,24.88784085,178.96,178.95,8.64977233]
[1747215689598,19.3,178.96,178.95,8.64977233]
[1747215689986,19.3,178.96,178.95,27.29942119]
[1747215690494,5.58669048,179.0,178.95,27.29942119]
[1747215690696,5.58669048,179.0,178.99,8.64977233]
[1747215692697,24.88636051,179.01,178.99,8.64977233]
[1747215692905,24.88636051,179.01,179.0,8.64977233]
[1747215693881,19.3,179.01,179.0,8.64977233]
[1747215694475,24.88628009,179.01,179.0,8.64977233]
[1747215695403,24.88628009,179.01,178.99,8.64977233]
[1747215696104,19.3,179.01,179.0,8.64977233]
[1747215697595,19.3,179.01,179.0,27.29942119]
[1747215698109,19.3,179.06,179.01,18.64964886]
[1747215698418,19.3,179.06,179.05,8.64977233]
[1747215698819,24.8847202,179.06,179.05,8.64977233]
[1747215699320,19.3,179.06,179.05,8.64977233]
[1747215700716,19.3,179.06,179.05,27.29942119]
[1747215702392,5.58347292,179.1,179.05,27.58374433]
[1747215702696,19.24,179.11,179.09,8.64977233]
[1747215702890,19.24,179.11,179.1,27.29942119]
[1747215703920,24.82316118,179.11,179.1,8.64977233]
[1747215707728,24.82316118,179.11,179.07,32.2665]
[1747215707729,24.82316118,179.11,179.09,8.64977233]
[1747215708997,24.82316118,179.11,179.1,8.64977233]
[1747215709196,24.82316118,179.11,179.07,26.0]
[1747215709519,24.82316118,179.11,179.1,8.64977233]
[1747215711224,19.24,179.16,179.1,8.64977233]
[1747215711400,5.58191459,179.15,179.14,8.64977233]
[1747215712928,5.58191459,179.15,179.12,8.64977233]
[1747215713130,5.58191459,179.15,179.13,8.64977233]
[1747215713298,5.58191459,179.15,179.14,8.64977233]
[1747215714131,5.58191459,179.15,179.13,8.64977233]
[1747215714315,5.58191459,179.15,179.14,8.64977233]
[1747215718895,19.24,179.16,179.14,8.64977233]
[1747215719108,19.24,179.16,179.15,8.64977233]
[1747215719310,19.24,179.16,179.15,27.29942119]
[1747215719514,5.58090627,179.19,179.15,27.29942119]
[1747215719714,19.22,179.21,179.19,18.64964886]
[1747215719928,19.22,179.21,179.2,8.64977233]
[1747215720151,19.22,179.21,179.19,8.64977233]
[1747215720152,24.80004575,179.21,179.19,8.64977233]
[1747215720335,24.80004575,179.21,179.18,8.64977233]
[1747215722941,24.80004575,179.21,179.19,8.64977233]
[1747215723328,24.80004575,179.21,179.18,8.64977233]
[1747215723630,24.80004575,179.21,179.14,44.64964886]
[1747215723631,47.39993247,179.21,179.16,8.64977233]
[1747215723831,38.75016014,179.21,179.17,8.64977233]
[1747215724964,8.64977233,179.2,179.16,8.64977233]
[1747215725330,19.53233997,179.19,179.15,8.64977233]
[1747215725531,19.53233997,179.19,179.12,46.17814886]
[1747215725532,28.1821123,179.19,179.14,8.64977233]
[1747215725950,8.64977233,179.17,179.13,8.64977233]
[1747215726260,8.64977233,179.17,179.12,8.64977233]
[1747215727254,19.53561062,179.16,179.12,8.64977233]
[1747215727745,19.53561062,179.16,179.13,8.64977233]
[1747215729657,13.95400759,179.16,179.1,24.79424886]
[1747215729859,13.95400759,179.16,179.13,8.64977233]
[1747215730933,22.60377992,179.16,179.12,8.64977233]
[1747215731133,19.18,179.15,179.11,8.64977233]
[1747215731397,19.18,179.15,179.08,20.25044886]
[1747215731398,8.64977233,179.14,179.08,1.6008]
[1747215731562,27.82977233,179.15,179.1,8.64977233]
[1747215731751,19.18,179.15,179.14,8.64977233]
[1747215732155,5.58139078,179.17,179.14,8.64977233]
[1747215732635,5.58139078,179.17,179.16,8.64977233]
[1747215733159,19.53461955,179.17,179.14,8.64977233]
[1747215733346,19.53461955,179.17,179.13,8.64977233]
[1747215734069,28.18439188,179.17,179.13,8.64977233]
[1747215734259,28.18439188,179.17,179.12,8.64977233]
[1747215734462,28.18439188,179.17,179.13,8.64977233]
[1747215734967,28.18439188,179.17,179.09,18.64964886]
[1747215735170,28.18439188,179.17,179.13,8.64977233]
[1747215736073,8.64977233,179.16,179.08,27.6008]
[1747215736281,8.64977233,179.15,179.1,8.64977233]
[1747215736565,19.18,179.14,179.11,8.64977233]
[1747215736768,19.18,179.14,179.08,1.6008]
[1747215736769,19.18,179.14,179.1,8.64977233]
[1747215736958,19.18,179.14,179.11,8.64977233]
[1747215737275,19.18,179.14,179.12,8.64977233]
[1747215737563,19.18,179.14,179.13,8.64977233]
[1747215738155,24.76222619,179.14,179.13,8.64977233]
[1747215739770,24.76222619,179.14,179.12,8.64977233]
[1747215739970,24.76222619,179.14,179.08,46.25044886]
[1747215739971,38.71779166,179.14,179.08,46.25044886]
[1747215740177,38.71779166,179.14,179.1,8.64977233]
[1747215740974,47.36756399,179.14,179.1,8.64977233]
[1747215742270,38.71779166,179.14,179.1,8.64977233]
[1747215744279,38.71779166,179.14,179.08,27.6008]
[1747215744449,47.36756399,179.14,179.1,8.64977233]
[1747215744779,24.76222619,179.14,179.1,8.64977233]
[1747215744947,19.18,179.14,179.13,8.64977233]
[1747215745154,24.76066856,179.19,179.14,18.64964886]
[1747215745375,24.76066856,179.19,179.18,8.64977233]
[1747215745674,24.76066856,179.19,179.17,8.64977233]
[1747215747359,19.18,179.19,179.18,8.64977233]
[1747215748161,19.18,179.24,179.19,18.64964886]
[1747215748347,24.75920729,179.24,179.23,8.64977233]
[1747215749380,24.75920729,179.24,179.21,8.64977233]
[1747215749581,33.40897962,179.24,179.2,8.64977233]
[1747215749752,38.7069868,179.24,179.2,8.64977233]
[1747215750078,38.7069868,179.24,179.17,26.0]
[1747215750079,24.75920729,179.24,179.22,8.64977233]
[1747215750389,19.18,179.24,179.23,8.64977233]
[1747215750684,24.7591118,179.24,179.23,8.64977233]
[1747215752082,24.7591118,179.24,179.19,18.64964886]
[1747215752296,33.40888413,179.24,179.19,8.64977233]
[1747215752451,38.70689131,179.24,179.2,8.64977233]
[1747215752647,24.7591118,179.24,179.22,8.64977233]
[1747215752850,24.7591118,179.24,179.17,50.23078602]
[1747215753154,24.7591118,179.24,179.23,8.64977233]
[1747215753355,24.7591118,179.24,179.22,8.64977233]
[1747215753781,24.7591118,179.24,179.23,8.64977233]
[1747215755089,24.73755591,179.29,179.23,27.29942119]
[1747215755254,24.73755591,179.29,179.28,8.64977233]
[1747215755453,19.16,179.29,179.28,8.64977233]
[1747215756412,5.57667868,179.32,179.28,8.64977233]
[1747215756679,5.57667868,179.32,179.31,8.64977233]
[1747215757182,5.57667868,179.32,179.3,8.64977233]
[1747215757997,19.51823567,179.32,179.29,8.64977233]
[1747215758410,19.51823567,179.32,179.3,8.64977233]
[1747215759296,19.51823567,179.32,179.29,8.64977233]
[1747215760329,19.51823567,179.32,179.3,8.64977233]
[1747215760685,19.51823567,179.32,179.29,8.64977233]
[1747215760891,19.51823567,179.32,179.3,8.64977233]
[1747215761188,5.57667868,179.32,179.31,8.64977233]
[1747215762112,19.16,179.34,179.31,8.64977233]
[1747215762290,19.16,179.34,179.33,8.64977233]
[1747215763200,26.0,179.42,179.29,26.0]
[1747215763201,14.22390833,179.4,179.31,1.6525]
[1747215763389,28.15924835,179.4,179.35,8.64977233]
[1747215763897,8.64977233,179.38,179.33,8.64977233]
[1747215764397,8.64977233,179.39,179.34,8.64977233]
[1747215765114,8.64977233,179.38,179.34,8.64977233]
[1747215765316,19.50947602,179.4,179.32,8.64977233]
[1747215765317,8.64977233,179.37,179.32,8.64977233]
[1747215766227,19.12,179.39,179.34,8.64977233]
[1747215766526,27.76977233,179.39,179.34,8.64977233]
[1747215767104,5.57475749,179.38,179.34,8.64977233]
[1747215767722,8.64977233,179.36,179.3,26.0]
[1747215767919,27.74977233,179.35,179.3,34.64977233]
[1747215768123,8.64977233,179.33,179.29,8.64977233]
[1747215768326,19.1,179.35,179.29,8.64977233]
[1747215768327,8.64977233,179.34,179.29,8.64977233]
[1747215768828,19.1,179.35,179.3,8.64977233]
[1747215769127,5.57600089,179.34,179.28,26.0]
[1747215769427,5.57600089,179.34,179.31,8.64977233]
[1747215769921,28.16577545,179.34,179.28,26.0]
[1747215770226,8.64977233,179.33,179.28,8.64977233]
[1747215770635,8.64977233,179.31,179.26,8.64977233]
[1747215770845,8.64977233,179.3,179.26,8.64977233]
[1747215771131,5.57786702,179.28,179.23,1.6656]
[1747215771325,5.57786702,179.28,179.25,8.64977233]
[1747215772127,24.67764077,179.29,179.27,8.64977233]
[1747215772319,5.57594425,179.35,179.31,26.0]
[1747215772631,5.57594425,179.35,179.32,8.64977233]
[1747215773329,28.16359926,179.36,179.31,8.64977233]
[1747215775421,33.30758219,179.36,179.31,13.79375526]
[1747215777128,5.57537912,179.36,179.32,13.79375526]
[1747215777622,5.57537912,179.36,179.29,26.0]
[1747215777827,5.57537912,179.36,179.32,13.79375526]
[1747215778425,19.51382693,179.36,179.32,13.79375526]
[1747215778631,13.79375526,179.35,179.31,13.79375526]
[1747215778831,19.51382693,179.36,179.24,19.24216157]
[1747215778832,13.79375526,179.33,179.24,44.64964886]
[1747215779128,13.79375526,179.33,179.28,13.79375526]
[1747215779299,19.51709138,179.33,179.29,13.79375526]
[1747215779499,19.51709138,179.33,179.28,13.79375526]
[1747215779500,33.31084664,179.33,179.28,13.79375526]
[1747215779698,13.79375526,179.32,179.27,13.79375526]
[1747215780814,19.51709138,179.33,179.29,13.79375526]
[1747215781013,5.57631182,179.33,179.32,13.79375526]
[1747215781331,5.57631182,179.33,179.31,13.79375526]
[1747215781536,5.57631182,179.33,179.32,13.79375526]
[1747215782035,19.1,179.34,179.32,13.79375526]
[1747215782216,19.1,179.4,179.33,13.79375526]
[1747215782422,19.1,179.4,179.39,13.79375526]
[1747215782932,38.60947602,179.4,179.37,13.79375526]
[1747215783134,52.40323128,179.4,179.32,26.0]
[1747215783331,52.40323128,179.4,179.35,13.79375526]
[1747215783633,13.79375526,179.53,179.44,0.14216157]
[1747215783836,5.57128137,179.5,179.47,13.79375526]
[1747215784219,24.67077195,179.51,179.47,13.79375526]
[1747215784414,5.57116821,179.5,179.47,13.79375526]
[1747215784913,13.79375526,179.5,179.45,13.79375526]
[1747215785115,32.89375526,179.51,179.46,13.79375526]
[1747215785335,19.1,179.51,179.47,13.79375526]
[1747215785830,34.01866061,179.48,179.43,13.79375526]
[1747215786336,47.9477892,179.48,179.43,13.79375526]
[1747215786509,13.79375526,179.47,179.42,13.79375526]
[1747215787127,34.15403394,179.48,179.41,13.79375526]
[1747215787128,13.79375526,179.46,179.41,13.79375526]
[1747215787322,34.15403394,179.48,179.4,13.79375526]
[1747215787323,32.89375526,179.45,179.4,13.79375526]
[1747215787532,32.89375526,179.45,179.41,13.79375526]
[1747215788248,5.57289344,179.44,179.42,13.79375526]
[1747215789543,5.57289344,179.44,179.43,13.79375526]
[1747215789838,19.1,179.45,179.43,13.79375526]
[1747215790041,19.1,179.45,179.44,13.79375526]
[1747215791145,24.67258289,179.45,179.44,13.79375526]
[1747215791816,19.1,179.45,179.44,13.79375526]
[1747215792022,24.67258289,179.45,179.44,13.79375526]
[1747215793116,24.67258289,179.45,179.41,26.0]
[1747215793317,24.67258289,179.45,179.43,13.79375526]
[1747215793756,52.39779538,179.45,179.39,4.31996298]
[1747215793920,52.39779538,179.45,179.4,13.79375526]
[1747215794250,19.50621411,179.43,179.39,13.79375526]
[1747215794660,33.29996937,179.43,179.35,7.8878]
[1747215794847,13.79375526,179.41,179.36,13.79375526]
[1747215795025,13.79375526,179.42,179.37,13.79375526]
[1747215795346,13.79375526,179.41,179.36,13.79375526]
[1747215796220,33.30431883,179.39,179.31,6.5762]
[1747215796534,19.06,179.38,179.34,13.79375526]
[1747215797033,13.79375526,179.37,179.3,1.652]
[1747215797241,13.79375526,179.37,179.32,13.79375526]
[1747215797450,19.06,179.38,179.31,13.79375526]
[1747215797451,13.79375526,179.36,179.31,13.79375526]
[1747215797821,13.79375526,179.36,179.3,1.652]
[1747215798043,13.79375526,179.35,179.3,13.79375526]
[1747215798228,5.57631182,179.33,179.27,6.4493]
[1747215798440,5.57631182,179.33,179.3,13.79375526]
[1747215798954,5.57631182,179.33,179.27,6.4493]
[1747215799246,32.85375526,179.37,179.32,13.79375526]
[1747215799445,38.42882355,179.37,179.32,13.79375526]
[1747215799755,52.36649428,179.37,179.33,13.79375526]
[1747215799918,52.36649428,179.37,179.32,13.79375526]
[1747215801237,13.79375526,179.36,179.31,13.79375526]
[1747215802445,5.57568999,179.35,179.31,13.79375526]
[1747215802628,19.36944525,179.35,179.31,13.79375526]
[1747215802945,19.51491496,179.35,179.31,13.79375526]
[1747215803251,5.57568999,179.35,179.33,13.79375526]
[1747215803656,5.57568999,179.35,179.32,13.79375526]
[1747215804250,33.30867022,179.35,179.31,13.79375526]
[1747215804624,19.51491496,179.35,179.31,13.79375526]
[1747215804830,5.57568999,179.35,179.32,13.79375526]
[1747215806254,5.57568999,179.35,179.31,13.79375526]